Cogmind - Beta 16.1 @@@ ROGUE MODE // 2026.03.14 @ 19:14:56 Player: CometVoid Result: Self-destructed Performance ------------- Evolutions (1) 500 Regions Visited (2) 400 Robots Destroyed (17) 85 Value Destroyed (411) 411 Prototype IDs (0) 0 Alien Tech Used (0) 0 Bonus (0) 0 TOTAL SCORE: 1396 Bonus ------- None Cogmind --------- Core Integrity 347/400 Matter 275/300 Energy 135/250 System Corruption 0% Temperature Cool (0) Movement Hovering (180) Ox2 Location -9/Materials Parts ------- > --- POWER (1) -------- Ion Engine > --- PROPULSION (3) --- Improved Hover Unit > --- UTILITY (3) ------ Small Storage Unit Improved Terrain Scanner ECM Suite > --- WEAPON (2) ------- Particle Gun Rocket Launcher > --- INVENTORY (8) ---- Light Ion Engine Hover Unit Hover Unit Improved Hover Unit Weight Redist. System Peak State ------------ > --- POWER ------------ Light Ion Engine > --- PROPULSION ------- Improved Hover Unit Improved Hover Unit Improved Hover Unit > --- UTILITY ---------- Small Storage Unit Improved Terrain Scanner > --- WEAPON ----------- Particle Gun Mining Laser > --- INVENTORY -------- Ion Engine Hover Unit Hover Unit Improved Hover Unit Weight Redist. System ECM Suite Rocket Launcher [Rating: 15] Favorites ----------- Power Light Ion Engine Engine Light Ion Engine Propulsion Light Treads Treads Light Treads Hover Unit Improved Hover Unit Utility Small Storage Unit Device Improved Terrain Scanner Storage Small Storage Unit Weapon Light Assault Rifle Energy Gun Particle Gun Energy Cannon Light EM Pulse Cannon Ballistic Gun Light Assault Rifle Launcher Grenade Launcher Special Weapon Mining Laser Build | -11 -10 -9 ------- Run | Yrd Mat Mat Slots Evolved 2 | . . 2 Power . | . . . Propulsion 1 | . . 1 Utility 1 | . . 1 Weapon . | . . . Parts Attached 18 | 6 8 4 Power 2 | 1 . 1 Engine 2 | 1 . 1 Core . | . . . Reactor . | . . . Propulsion 5 | 2 2 1 Treads 2 | 2 . . Leg . | . . . Wheel . | . . . Hover 3 | . 2 1 Flight . | . . . Utility 3 | 1 1 1 Device 2 | . 1 1 Storage 1 | 1 . . Processor . | . . . Hackware . | . . . Protection . | . . . Artifact . | . . . Weapon 8 | 2 5 1 Energy Gun 2 | . 2 . Energy Cannon 1 | . 1 . Ballistic Gun 2 | 2 . . Ballistic Cannon . | . . . Launcher 2 | . 1 1 Special Weapon 1 | . 1 . Impact Weapon . | . . . Slashing Weapon . | . . . Piercing Weapon . | . . . Special Melee Weapon . | . . . Unidentified Prototypes . | . . . Parts Lost 3 | . . 3 Power . | . . . Propulsion 2 | . . 2 Utility . | . . . Weapon 1 | . . 1 Highest Loss Streak 3 | . . 3 To Critical Strikes . | . . . Average Backups 7 | 6 7 6 Power 1 | . 1 1 Propulsion 3 | 3 3 3 Utility 1 | . 1 1 Weapon 1 | 1 1 . Tool/Special . | . . . Unused Backups 14 | 2 8 4 Power 2 | . 2 . Propulsion 9 | 2 4 3 Utility 2 | . 1 1 Weapon 1 | . 1 . Tool/Special . | . . . Average Slot Usage (%) 96 | . 96 96 Engine 13 | . 14 11 Treads 17 | . 20 . Hover 11 | . 7 31 Device 12 | . 11 21 Storage 13 | . 14 11 Energy Gun 6 | . 5 11 Ballistic Gun 17 | . 21 . Special Weapon 2 | . 1 10 Peak Build Rating 15 | 7 14 15 Average Rating 9 | 6 9 14 On Entrance 6 | . 7 13 Avg Prop Armor Cover (%) 5 | . . 5 Naked Turns . | . . . Heaviest Build 20 | 10 15 20 Greatest Support 40 | 40 40 21 Greatest Overweight (x) 1 | 1 1 1 Average Overweight (x) . | . . . Largest Inventory Capacity 8 | 8 8 8 Average Capacity 7 | 7 8 8 Most Carried 8 | 8 8 7 Average Carried 7 | 6 7 5 Final Capacity 8 | 8 8 8 Final Carried 8 | 8 8 5 Class Distribution -------------------- 100% | Mutant Dominant Class ---------------- Mutant | -10/Materials Mutant | -9/Materials Resources | -11 -10 -9 ----------- Run | Yrd Mat Mat Matter Collected 428 | 260 168 . Remotely . | . . . Salvage Created 578 | 78 457 43 Parts 42 | 12 30 . Haulers Intercepted 1 | . 1 . Recyclers Shooed . | . . . Parts Field Recycled . | . . . Retrieved Matter . | . . . Parts Self-Destructed . | . . . Prevented . | . . . Parts Restored . | . . . Kills | -11 -10 -9 ------- Run | Yrd Mat Mat Combat Hostiles Destroyed 9 | . 8 1 Guns 9 | . 8 1 Classes Destroyed 5 | 1 4 . Tunneler 5 | 5 . . Hauler 1 | . 1 . Recycler 1 | . 1 . Watcher 1 | . 1 . Grunt 9 | . 8 1 Best Kill Streak 4 | 2 4 1 Combat Bots Only 3 | . 3 1 Max Kills in Single Turn 1 | 1 1 1 Gunslinging . | . . . Exploded . | . . . Melee . | . . . Uniques/NPCs Destroyed . | . . . Combat | -11 -10 -9 -------- Run | Yrd Mat Mat Hostile Shots Fired 70 | . 47 23 Missed 15 | . 9 6 Hits 55 | . 38 17 Projectile 55 | . 38 17 Damage Taken 709 | . 491 218 Core 135 | . 82 53 Absorbed by Shields . | . . . Core Remaining (%) 83 | 100 67 . Volleys Fired 77 | 14 41 22 Largest 2 | 2 2 1 Hottest 130 | 40 130 65 Shots Fired 132 | 28 82 22 Gun 132 | 28 82 22 Cannon . | . . . Launcher . | . . . Special . | . . . Kinetic 106 | 28 78 . Thermal 26 | . 4 22 Explosive . | . . . Electromagnetic . | . . . Robot Hit Streak 8 | 5 8 3 Robot Miss Streak 8 | 4 2 8 Penetration Max . | . . . Secondary Targets 1 | . 1 . Max Gunslinging Chain 1 | . 1 . Shots Hit Robots 77 | 17 51 9 Core Hits 40 | 8 31 1 Critical Kills . | . . . Critical Parts Destroyed 1 | . 1 . Critical Strikes 4 | . 1 3 Burn 3 | . . 3 Destroy 1 | . 1 . Melee Attacks . | . . . Impact . | . . . Slashing . | . . . Piercing . | . . . Sneak Attacks . | . . . Combat Hostiles . | . . . Follow-up Attacks . | . . . Damage Inflicted 740 | 155 443 142 Guns 712 | 139 431 142 Cannons . | . . . Explosions 12 | . 12 . Melee . | . . . Ramming 16 | 16 . . Kinetic 535 | 139 396 . Thermal 177 | . 35 142 Explosive . | . . . Electromagnetic 12 | . 12 . Impact . | . . . Slashing . | . . . Piercing . | . . . Highest Corruption . | . . . Average Corruption . | . . . Corruption Purged . | . . . Corruption Blocked . | . . . Overload Shots . | . . . Overflow Damage . | . . . Projectiles . | . . . Explosions . | . . . Melee . | . . . Knockbacks 1 | 1 . . Impact 1 | 1 . . Kinetic . | . . . Secondary . | . . . Self-Inflicted Damage 36 | . 36 . Shots 1 | . 1 . Rammed 8 | 8 . . Targets Rammed 9 | 9 . . Kicked . | . . . Crushed 1 | 1 . . Highest Temperature 295 | . 150 295 Average Temperature 66 | . 25 102 Received Heat Transfer 363 | . 264 99 Effects 1 | . . 1 Energy Bleed 1 | . . 1 Siege Activations . | . . . Martial Activations . | . . . Shielding Activations . | . . . Robots Disrupted . | . . . Combat Hostiles . | . . . Robots Corrupted . | . . . Combat Hostiles . | . . . Parts Fried . | . . . Impact Corruptions . | . . . Robots Melted . | . . . Combat Hostiles . | . . . Parts Melted 4 | . . 4 Heat Transferred 629 | . 74 555 Parts Sabotaged . | . . . Parts Stolen . | . . . Parts Stripped . | . . . Power Chain Reactions . | . . . Alert | -11 -10 -9 ------- Run | Yrd Mat Mat Maximum Alert Level . | . . . Low Security (%) 100 | 100 100 100 Level 1 . | . . . Level 2 . | . . . Level 3 . | . . . Level 4 . | . . . Level 5 . | . . . High Security . | . . . Max Security . | . . . Peak Influence 83 | 10 83 20 Initial 10 | . . 10 Average 22 | . 36 4 Influence Increases 320 | 25 260 35 Destroy 0b10 Robot/C 180 | . 160 20 Destroy 0b10 Robot/NC 40 | 25 15 . Destroy Leader 54 | . 54 . Disable Machine 30 | . 15 15 Destroy Structure 1 | . 1 . Lose Combat Pursuer 15 | . 15 . Influence Decreases 320 | 25 234 61 Entered New Map 16 | . . 16 Time Decay 274 | 25 234 15 Lost Part 20 | . . 20 Purge Threat 10 | . . 10 Squads Dispatched 5 | . 3 2 Investigation 2 | . 1 1 Extermination . | . . . Reinforcement 3 | . 2 1 Assault . | . . . Garrison . | . . . Intercept . | . . . Searches Triggered . | . . . Construction Impeded . | . . . Haulers Reinforced . | . . . Active Scanning Responses . | . . . Cargo Convoy Interrupts . | . . . Stealth | -11 -10 -9 --------- Run | Yrd Mat Mat Distress Signals 2 | . 1 1 Communications Jammed . | . . . Distress Signals . | . . . Times Spotted 23 | . 16 7 Peak Tracking Total 4 | . 4 3 Tactical Retreats 1 | . 1 . Traps | -11 -10 -9 ------- Run | Yrd Mat Mat Traps Triggered . | . . . Indirectly . | . . . Trap Hack Attempts . | . . . Triggered . | . . . Disarmed . | . . . Reprogrammed . | . . . Reused . | . . . Traps Extracted . | . . . Installed . | . . . Triggered . | . . . Machines | -11 -10 -9 ---------- Run | Yrd Mat Mat Machines Disabled 2 | . 1 1 Max in Single Turn 1 | . 1 1 Machines Repaired . | . . . Machines Dismantled . | . . . Machines Sabotaged . | . . . Overloaded Fab Kills . | . . . Hacking | -11 -10 -9 --------- Run | Yrd Mat Mat Machines Accessed 3 | . 2 1 Terminals 3 | . 2 1 Fabricators . | . . . Repair Stations . | . . . Recycling Units . | . . . Scanalyzers . | . . . Garrison Access . | . . . Total Hacks 10 | . 6 4 Successful 2 | . . 2 Failed 8 | . 6 2 Catastrophic 2 | . 1 1 Database Lockouts . | . . . Manual 7 | . 6 1 Terminals 10 | . 6 4 Fabricators . | . . . Repair Stations . | . . . Recycling Units . | . . . Scanalyzers . | . . . Garrison Access . | . . . Terminal Hacks 2 | . . 2 Alert Level 1 | . . 1 Unreport Threat 1 | . . 1 Fabricator Hacks . | . . . Repair Station Hacks . | . . . Recycling Unit Hacks . | . . . Scanalyzer . | . . . Garrison Access Hacks . | . . . Unauthorized Hacks . | . . . Terminals . | . . . Fabricators . | . . . Repair Stations . | . . . Recycling Units . | . . . Scanalyzers . | . . . Garrison Access . | . . . Data Cores Recovered . | . . . Used . | . . . Hacking Detections 3 | . 2 1 Full Trace Events 2 | . 1 1 Feedback Events . | . . . Feedback Blocked . | . . . Robot Schematics Acquired . | . . . Robots Built . | . . . Authchips . | . . . Time . | . . . Total Robot Build Rating . | . . . Part Schematics Acquired . | . . . Parts Built . | . . . Authchips . | . . . Time . | . . . Total Part Build Rating . | . . . Part Studies Acquired . | . . . Parts Repaired . | . . . Time . | . . . Parts Recycled . | . . . Recycled Matter . | . . . Retrieved Matter . | . . . Retrieved Components . | . . . Parts Scanalyzed . | . . . Part Schematics Acquired . | . . . Parts Damaged . | . . . Bothacking | -11 -10 -9 ------------ Run | Yrd Mat Mat Used RIF Installer . | . . . Robots Hacked . | . . . Non-combat . | . . . Combat . | . . . Robot Hacks Applied . | . . . Relay Couplers Released . | . . . Fabnet Peak Effective % . | . . . Robots Rewired . | . . . Allies Hacked . | . . . Hacks Repelled . | . . . Allies | -11 -10 -9 -------- Run | Yrd Mat Mat Total Allies . | . . . Largest Group . | . . . Highest-Rated Group . | . . . Highest-Rated Ally . | . . . Total Orders . | . . . Ally Attacks . | . . . Total Damage . | . . . Kills . | . . . Allies Corrupted . | . . . Allies Melted . | . . . Intel | -11 -10 -9 ------- Run | Yrd Mat Mat Active Infowar (turns) 568 | . 457 111 Terrain 568 | . 457 111 ECM 33 | . . 33 Robot Analysis Total . | . . . Derelict Logs Recovered . | . . . Drone Launches . | . . . Drone Recoveries . | . . . Exploration | -11 -10 -9 ------------- Run | Yrd Mat Mat Turns Passed 935 | 254 570 111 Spaces Moved 542 | 120 339 83 Core 9 | 9 . . Treads 290 | 111 179 . Legs . | . . . Wheels . | . . . Hover 243 | . 160 83 Flight . | . . . Fastest Speed 50 | 50 56 52 Average Speed 120 | 155 120 70 Slowest Speed 160 | 160 160 116 Overloaded Moves . | . . . Propulsion Burnouts . | . . . Robots Hopped . | . . . Potential Cave-ins . | . . . Cave-ins Triggered . | . . . Exploration Rate (%) 23 | 7 54 10 Regions Visited 2 Branch Regions . Pre-discovered Areas . | . . . Known Exits Taken . | . . . Unknown Exits Taken 2 | 1 1 . Scrap Searched . | . . . Spaces Dug . | . . . Terrain Destroyed . | . . . Melee . | . . . Projectile . | . . . AOE . | . . . Terrain Rammed . | . . . Walls Destroyed . | . . . Machines Disabled . | . . . Actions | -11 -10 -9 --------- Run | Yrd Mat Mat Total 711 | 160 439 112 Wait 25 | . 22 3 Move 540 | 119 338 83 Hop . | . . . Pick Up 25 | 10 15 . Fast Attach 6 | 6 . . Attach 4 | . 1 3 Detach . | . . . Swap 9 | . 8 1 Drop 16 | 2 14 . Fire 77 | 14 41 22 Melee . | . . . Ram . | . . . Kick . | . . . Crush 9 | 9 . . Escape Stasis . | . . . Rewire . | . . . Trap . | . . . Miscellaneous . | . . . Route ------- -11/Scrapyard -10/Materials (discovered 2 exits: *Mat / [*Min]) -9/Materials History --------- Turn | Location | Event 30 | -11/Scrapyard | Discovered new exit (range 16) 255 | -11/Scrapyard | Entered Materials 307 | -10/Materials | Build established: Mutant 357 | -10/Materials | Discovered new exit (range 12) 686 | -10/Materials | Discovered new exit (range 14) 825 | -10/Materials | Entered another Materials area 825 | -9/Materials | Evolved 2 slots: Propulsion x1, Utility x1 936 | -9/Materials | Self-destructed Last Messages --------------- 00842_ O-16 Technician: "IFF HANDSHAKE FAILED. SECURING TERMINAL." 00853_ Destroyed Hover Unit. 00853_ O-16 Technician suffers critical hit (Burn). 00856_ Matter Filter disabled. 00869_ ALERT: Hostiles spotted, dispatching reinforcements to Terminal M009. 00871_ K-01 Serf collects debris. 00871_ W-16 Scout sends out distress signal. 00874_ K-01 Serf collects debris. 00897_ G-34 Mercenary suffers critical hit (Burn). 00897_ K-01 Serf collects debris. 00906_ Overheating: Energy bleed (-35). 00907_ Melted Ion Engine. 00907_ G-34 Mercenary overheating. 00909_ G-34 Mercenary suffers critical hit (Burn). 00909_ Heat Sink melted. 00909_ Aluminum Leg melted. 00909_ G-34 Mercenary destroyed. 00914_ Imp. Hover Unit destroyed. 00923_ Mining Laser destroyed. 00935_ Imp. Hover Unit destroyed. Map ----- +----------------------------------------------------+ | ?????????????????????????????????????????????????? | | ?????????????????????????????????????????????????? | | ?????????????????????????????????????????????????? | | ?????????????????????????????????????????????????? | | ?????????????????????????????????????????????????? | | ?????????????????????????????????????????????????? | | ?????????????????????????????????????????????????? | | ???????????????????????? ??????????????????????? | | ???????????????????????# ??????????????????????? | | ???????????????????????# ???#??????????????????? | | ???????????????????????# ??????????????????????? | | ???????????????????????# ??????????????????????? | | ???????????????????????# ???????????? ?????????? | | ???????????????????????# #????????"????????????? | | ???????????????????????# #??#??????????????????? | | ???????????????????????#g #?????????????????????? | | ????????????????#??????# #??????#??? ? ???????? | | ???????????????????#???# #???????????????#???#?? | | ???????????????????#??## #???####?#?#######????? | | ????????????????######?# w###### ###### | | ???????????????## # # T # """"""" # | | ??????????????#??? + # # """"""" # T | | ???????????????????????# # # """"""" # | | ???????????????????????# Y% # """"""" # | | ???????????????????????# # # """""%" # | | ?????????????????????? # @ # # % # | | ?????????????????###+### ##############+######+# | | ??????????? | | ??????????? | | ??????????? | | ???????????#########+##################+########## | | ?????????????????????? ?????#???# #??? | | ??????????????????? ?? ????????## #??? | | ?????????????????????? ?????????# #??? | | ????????????????????????????????# #??? | | ?????????????????? ?????????????# = #??? | | ?????????????????? ?????????????# #??? | | ????????????????????????#???????###############??? | | | | | | | | | | | | | | | | | | | | | | | | | +----------------------------------------------------+ Best States ------------- Heat Dissipation 28 Energy Generation 10 Energy Capacity 250 Matter Stores 300 Matter Capacity 300 Sight Range 16 Terrain Scan Range 16 Terrain Scan Density 10 ECM Strength 1 Evasion (%) 54 Recoil Reduction 2 Item Schematics ----------------- None Robot Schematics ------------------ None Fabricated ------------ Nothing Repaired ---------- Nothing Studied --------- None Alien Tech Used ----------------- None Achievements -------------- None Challenges ------------ None Game ------ Seed CorruptionDefenseForcewell Manual? 0 Play Time 00:19:21 Cumulative 29.8 hours Start 2026.03.14 @ 18:49:30 End 2026.03.14 @ 19:14:56 Sessions 1 Manual Loads 0 Difficulty Rogue Special Mode None Game No. 29 Rogue 25 Adventurer 4 Explorer 0 Win Type - Total 0 Types 0/0/0/0/0/0/0/0/0/0 Lore% 12 Gallery% 19 Achievement% 20 Wizard Run 0 Options --------- Layout 0 ASCII 0 Keyboard 1 Movement Arrows Keybinds 0 Fullscreen 2 Font 32/CogWide Map View 78x50 Zoom Use 0% Tactical HUD 1 Map Filters NONE Filters NONE Steam 1 RUN: aeebc2df-5176-4efa-b369-7706dadccc18